Cogmind - Beta 15 --- EXPLORER MODE // 2025.09.01 @ 23:40:07 Player: chebyrekser Result: Destroyed by Combat Programmer with EMDS Performance ------------- Evolutions (9) 4500 Regions Visited (13) 2600 Robots Destroyed (136) 680 Value Destroyed (2735) 2735 Prototype IDs (130) 2600 Alien Tech Used (0) 0 Bonus (5300) 5300 TOTAL SCORE: 18415 Bonus ------- Aligned with FarCom 300 Met MAIN.C 5000 Cogmind --------- Core Integrity 0/1600 Matter 209/300 Energy 100/100 System Corruption 11% Temperature Cool (0) Movement Core (50) Location -1/Command Parts ------- > --- POWER (2) -------- (None) > --- PROPULSION (7) --- (None) > --- UTILITY (15) ----- (None) > --- WEAPON (2) ------- (None) > --- INVENTORY (5) ---- Advanced Terrain Scan Processor Improved Melee Analysis Suite Improved Melee Analysis Suite Enhanced Nova Cannon Gamma Bomb Array Peak State ------------ > --- POWER ------------ Micro Fission Core Light Quantum Reactor > --- PROPULSION ------- Improved VTOL Module Improved VTOL Module Cooled VTOL Module Cooled VTOL Module Cooled Nuclear Pulse Thruster Cooled Nuclear Pulse Thruster Impulse Thruster > --- UTILITY ---------- Improved Cooling System Medium Storage Unit Advanced Transmission Jammer Improved Cloaking Device Graphene Brace Hacking Suite Hacking Suite Improved Hacking Suite Improved Hacking Suite Improved Hacking Suite Advanced Hacking Suite System Shield System Shield Improved System Shield Improved System Shield > --- WEAPON ----------- Chainsword Power Sword > --- INVENTORY -------- Q-thruster Advanced Terrain Scan Processor Improved Melee Analysis Suite Improved Melee Analysis Suite Advanced Reaction Control System Layered Light Armor Plating Enhanced Nova Cannon Gamma Bomb Array Improved Plasma Cutter [Rating: 137] Favorites ----------- Power Deuterium Engine Engine Deuterium Engine Power Core Micro Fission Core Reactor Light Antimatter Reactor Propulsion Light Treads Treads Light Treads Wheel Compact Wheel Flight Unit Improved VTOL Module Utility Improved Heat Sink Device Improved Heat Sink Storage Huge Storage Unit Hackware System Shield Protection Light Armor Plating Weapon Medium Laser Energy Gun Medium Laser Energy Cannon Heavy Phase Cannon Ballistic Gun Autogun Launcher Grenade Launcher Special Weapon Improved Plasma Cutter Slashing Weapon Power Sword Build | -11 -10 -10 -10 -9 -8 -7 -6 -5 -4 -3 -2 -1 -1 ------- Run | Yrd Mat Min Exi Min Mat Fac Fac Fac Fac Res Res Acc Com Slots Evolved 19 | . 1 . . . 4 2 2 2 2 2 2 2 . Power 1 | . . . . . . . . 1 . . . . . Propulsion 5 | . 1 . . . 1 1 1 . . 1 . . . Utility 13 | . . . . . 3 1 1 1 2 1 2 2 . Weapon . | . . . . . . . . . . . . . . Parts Attached 112 | 6 14 1 . . 33 18 7 8 4 7 3 3 8 Power 12 | 1 1 1 . . 2 1 2 2 . . . . 2 Engine 9 | 1 1 1 . . 2 1 2 1 . . . . . Core 1 | . . . . . . . . 1 . . . . . Reactor 2 | . . . . . . . . . . . . . 2 Propulsion 40 | 1 9 . . . 13 10 2 3 . 1 . 1 . Treads 15 | 1 6 . . . 8 . . . . . . . . Leg . | . . . . . . . . . . . . . . Wheel 8 | . 3 . . . 5 . . . . . . . . Hover . | . . . . . . . . . . . . . . Flight 17 | . . . . . . 10 2 3 . 1 . 1 . Utility 40 | 2 2 . . . 11 6 1 1 3 5 3 2 4 Device 10 | . 1 . . . 4 1 . . . 2 1 . 1 Storage 4 | 1 1 . . . 1 1 . . . . . . . Processor . | . . . . . . . . . . . . . . Hackware 18 | . . . . . . 4 1 1 3 2 2 2 3 Protection 8 | 1 . . . . 6 . . . . 1 . . . Artifact . | . . . . . . . . . . . . . . Weapon 20 | 2 2 . . . 7 1 2 2 1 1 . . 2 Energy Gun 3 | 1 . . . . 2 . . . . . . . . Energy Cannon 3 | . . . . . . . 1 1 . . . . 1 Ballistic Gun 6 | 1 1 . . . 3 1 . . . . . . . Ballistic Cannon . | . . . . . . . . . . . . . . Launcher 3 | . 1 . . . 1 . . . . . . . 1 Special Weapon 2 | . . . . . . . . 1 1 . . . . Impact Weapon . | . . . . . . . . . . . . . . Slashing Weapon 3 | . . . . . 1 . 1 . . 1 . . . Piercing Weapon . | . . . . . . . . . . . . . . Special Melee Weapon . | . . . . . . . . . . . . . . Unidentified Prototypes 5 | . . . . . 4 . . 1 . . . . . Parts Lost 16 | . . . . . 2 . . . . 1 . . 13 Power 2 | . . . . . . . . . . . . . 2 Propulsion 5 | . . . . . 1 . . . . . . . 4 Utility 7 | . . . . . . . . . . 1 . . 6 Weapon 2 | . . . . . 1 . . . . . . . 1 Highest Loss Streak 11 | . . . . . 1 . . . . 1 . . 11 To Critical Strikes . | . . . . . . . . . . . . . . Average Backups 16 | 6 12 20 24 25 24 8 9 9 9 9 8 8 7 Power 1 | . 1 2 4 5 3 . . . . . . . . Propulsion 4 | 2 5 9 9 9 6 . . 1 . . . . . Utility 6 | 2 3 5 6 7 10 5 6 6 7 7 5 5 4 Weapon 3 | . 2 4 4 4 5 1 1 1 1 2 2 2 2 Tool/Special . | . . . . . . . . . . . . . . Unused Backups 35 | . 7 . . . 12 8 . . 2 2 1 . 3 Power 5 | . . . . . 4 1 . . . . . . . Propulsion 6 | . 3 . . . 1 1 . . 1 . . . . Utility 14 | . 3 . . . 3 2 . . 1 2 . . 3 Weapon 10 | . 1 . . . 4 4 . . . . 1 . . Tool/Special . | . . . . . . . . . . . . . . Average Slot Usage (%) 94 | . 99 100 100 100 96 98 93 94 99 99 98 99 48 Engine 8 | . 12 12 12 12 8 7 6 5 5 4 4 3 . Treads 12 | . 26 12 12 12 16 . . . . . . . . Wheel 11 | . 10 25 25 25 15 . . . . . . . . Flight 8 | . . . . . . 32 36 32 30 30 29 26 12 Device 10 | . 10 12 12 12 15 7 6 5 3 8 7 7 5 Storage 8 | . 12 12 12 12 8 3 6 5 5 4 4 3 1 Hackware 9 | . . . . . . 26 31 33 39 36 36 41 20 Protection 5 | . 1 . . . 14 3 . . 1 . 4 3 . Energy Gun 6 | . 11 12 12 12 7 . . . . . . . . Ballistic Gun 7 | . 12 12 12 12 6 6 . . . . . . . Slashing Weapon 2 | . . . . . 1 6 6 5 5 8 8 7 3 Peak Build Rating 137 | 6 13 15 17 17 40 50 63 81 89 108 118 128 137 Average Rating 36 | 5 12 14 16 17 31 45 56 72 87 103 116 125 63 On Entrance 52 | . 6 13 15 17 17 40 49 60 81 88 103 118 125 Naked Turns 313 | . . . . . . . . . . . . . 313 Heaviest Build 104 | 21 92 93 93 93 104 103 28 31 32 37 38 38 44 Greatest Support 66 | 20 66 26 26 26 32 32 32 32 32 39 39 42 50 Greatest Overweight (x) 9 | 2 9 3 3 3 6 3 . 1 . . . . . Average Overweight (x) . | . 1 3 3 3 3 . . . . . . . . Largest Inventory Capacity 25 | 10 25 25 25 25 25 25 10 10 10 10 10 10 10 Average Capacity 18 | 9 16 25 25 25 25 8 10 10 10 10 10 10 7 Most Carried 25 | 9 20 21 25 25 25 25 10 10 10 10 10 9 10 Average Carried 16 | 6 12 20 24 25 24 8 9 9 9 9 8 8 7 Final Capacity 25 | 10 25 25 25 25 25 10 10 10 10 10 10 10 5 Final Carried 25 | 9 20 21 25 25 25 10 10 10 10 10 10 9 5 Class Distribution -------------------- 62% | Hacker-Mutant 25% | Wizard-Sprinter 10% | Scavenger-Mutant Dominant Class ---------------- Hacker-Mutant | -10/Materials Hacker-Mutant | -10/Mines Hacker-Mutant | -10/Exiles Hacker-Mutant | -9/Mines Hacker-Mutant | -8/Materials Wizard-Sprinter | -7/Factory Wizard-Sprinter | -6/Factory Wizard-Sprinter | -5/Factory Wizard-Sprinter | -4/Factory Wizard-Sprinter | -3/Research Wizard-Sprinter | -2/Research Wizard-Sprinter | -1/Access Hacker-Mutant | -1/Command Resources | -11 -10 -10 -10 -9 -8 -7 -6 -5 -4 -3 -2 -1 -1 ----------- Run | Yrd Mat Min Exi Min Mat Fac Fac Fac Fac Res Res Acc Com Matter Collected 2888 | 265 498 26 . . 1224 220 80 82 58 199 86 20 130 Remotely . | . . . . . . . . . . . . . . Salvage Created 5382 | 83 1144 60 . . 2490 579 207 55 157 365 108 23 111 Parts 305 | 9 53 9 . . 121 38 16 8 9 21 12 2 7 Haulers Intercepted 8 | . 2 . . . 5 1 . . . . . . . Recyclers Shooed 9 | . 2 . . . 2 3 . . 1 1 . . . Parts Field Recycled . | . . . . . . . . . . . . . . Retrieved Matter . | . . . . . . . . . . . . . . Parts Self-Destructed . | . . . . . . . . . . . . . . Prevented . | . . . . . . . . . . . . . . Kills | -11 -10 -10 -10 -9 -8 -7 -6 -5 -4 -3 -2 -1 -1 ------- Run | Yrd Mat Min Exi Min Mat Fac Fac Fac Fac Res Res Acc Com Combat Hostiles Destroyed 52 | . 17 . . . 32 . . . . 2 1 . . Melee 3 | . . . . . . . . . . 2 1 . . Guns 47 | . 17 . . . 30 . . . . . . . . Classes Destroyed 13 | 3 5 . . . 4 . . . . . 1 . . Worker 25 | 1 2 1 . . 8 5 3 2 1 1 . 1 . Builder 6 | . 1 2 . . 1 1 1 . . . . . . Tunneler 3 | 1 . . . . . 1 1 . . . . . . Hauler 8 | . 2 . . . 5 1 . . . . . . . Recycler 18 | 1 3 . . . 7 4 1 . 1 1 . . . Mechanic 1 | . . . . . 1 . . . . . . . . Operator 8 | . . . . . 1 2 . 1 1 1 1 . 1 Watcher 15 | . 3 . . . 4 1 1 . . 3 1 . 2 Swarmer 12 | . 2 . . . 8 . . . . 2 . . . Cutter 1 | . . . . . . . . . . . 1 . . Grunt 28 | . 15 . . . 13 . . . . . . . . Sentry 10 | . . . . . 10 . . . . . . . . Hunter 1 | . . . . . 1 . . . . . . . . Best Kill Streak 6 | 2 5 1 . . 6 3 3 2 2 3 2 1 1 Combat Bots Only 6 | . 5 . . . 6 . . . . 2 1 . . Max Kills in Single Turn 2 | 1 1 1 . . 2 1 1 1 1 1 1 1 1 Gunslinging . | . . . . . . . . . . . . . . Exploded . | . . . . . . . . . . . . . . Melee 1 | . . . . . . . . . . 1 1 . . Uniques/NPCs Destroyed . | . . . . . . . . . . . . . . Combat | -11 -10 -10 -10 -9 -8 -7 -6 -5 -4 -3 -2 -1 -1 -------- Run | Yrd Mat Min Exi Min Mat Fac Fac Fac Fac Res Res Acc Com Hostile Shots Fired 443 | . 62 . . . 154 . . . 8 15 14 10 180 Missed 154 | . 17 . . . 45 . . . 2 7 10 9 64 Hits 289 | . 45 . . . 109 . . . 6 8 4 1 116 Melee 1 | . . . . . . . . . . . 1 . . Projectile 288 | . 45 . . . 109 . . . 6 8 3 1 116 AOE 2 | . . . . . . . . . . . 1 . 1 Critical Strikes 19 | . . . . . 6 . . . . . 1 . 12 Actively Blocked 6 | . . . . . . . . . . . 1 . 5 Part Disruptions 6 | . . . . . . . . . . . . . 6 Damage Taken 4328 | . 323 . . . 979 . . . 82 119 77 14 2734 Core 1793 | . 49 . . . 86 . . . 14 14 21 . 1609 Absorbed by Shields . | . . . . . . . . . . . . . . Ignored by Resistances 2419 | . 203 . . . 600 . . . 49 72 48 8 1439 Regen/Repaired (Parts) 50 | . . . . . 50 . . . . . . . . Core Remaining (%) 95 | 100 . . . 80 84 100 100 100 98 98 98 . . Volleys Fired 246 | 5 80 4 . . 147 . 1 1 3 4 . . 1 Largest 2 | 2 2 2 . . 2 . 1 1 1 1 . . 1 Hottest 120 | 70 73 73 . . 91 . 85 90 90 90 . . 120 Shots Fired 472 | 10 155 8 . . 289 . 1 1 3 4 . . 1 Gun 460 | 10 153 8 . . 289 . . . . . . . . Cannon 9 | . . . . . . . 1 1 2 4 . . 1 Launcher 2 | . 2 . . . . . . . . . . . . Special 1 | . . . . . . . . . 1 . . . . Kinetic 228 | 5 77 4 . . 142 . . . . . . . . Thermal 242 | 5 76 4 . . 147 . 1 1 3 4 . . 1 Explosive 2 | . 2 . . . . . . . . . . . . Electromagnetic . | . . . . . . . . . . . . . . Robot Hit Streak 59 | 4 54 34 . . 59 . . . . . . . 38 Robot Miss Streak 2 | 1 2 . . . 2 . . . . . . . . Penetration Max . | . . . . . . . . . . . . . . Secondary Targets 2 | . 1 . . . 1 . . . . . . . . Max Gunslinging Chain 1 | . 1 . . . 1 . . . . . . . . Shots Hit Robots 486 | 8 137 6 . . 257 22 9 6 9 18 5 1 8 Core Hits 188 | 5 49 3 . . 96 11 5 3 2 7 3 1 3 Critical Kills 1 | . . . . . 1 . . . . . . . . Critical Parts Destroyed . | . . . . . . . . . . . . . . Critical Strikes 24 | 1 4 2 . . 15 1 . . . 1 . . . Burn 20 | 1 4 2 . . 13 . . . . . . . . Destroy 1 | . . . . . 1 . . . . . . . . Sever 3 | . . . . . 1 1 . . . 1 . . . Melee Attacks 234 | . . . . . 8 49 13 17 39 52 17 7 32 Impact . | . . . . . . . . . . . . . . Slashing 234 | . . . . . 8 49 13 17 39 52 17 7 32 Piercing . | . . . . . . . . . . . . . . Sneak Attacks 37 | . . . . . 2 13 6 4 4 4 1 1 2 Combat Hostiles . | . . . . . . . . . . . . . . Follow-up Attacks 3 | . . . . . . . . . . 2 1 . . Damage Inflicted 11709 | 79 1915 85 . . 4525 1339 652 551 577 1037 315 94 540 Guns 6398 | 79 1915 85 . . 4319 . . . . . . . . Cannons 43 | . . . . . . . . . . . . . 43 Explosions . | . . . . . . . . . . . . . . Melee 5255 | . . . . . 206 1339 652 551 577 1037 315 94 484 Ramming 13 | . . . . . . . . . . . . . 13 Kinetic 3247 | 29 972 35 . . 2211 . . . . . . . . Thermal 3194 | 50 943 50 . . 2108 . . . . . . . 43 Explosive . | . . . . . . . . . . . . . . Electromagnetic . | . . . . . . . . . . . . . . Impact . | . . . . . . . . . . . . . . Slashing 5255 | . . . . . 206 1339 652 551 577 1037 315 94 484 Piercing . | . . . . . . . . . . . . . . Highest Corruption 11 | . . . . . 2 . . . . . . . 11 Average Corruption 2 | . . . . . 1 . . . . . . . 6 Corruption Purged . | . . . . . . . . . . . . . . Corruption Blocked . | . . . . . . . . . . . . . . Effects 37 | . . . . . 27 . . . . . . . 10 Message Errors 9 | . . . . . 7 . . . . . . . 2 Matter Fused 6 | . . . . . 4 . . . . . . . 2 Heat Flow Errors 6 | . . . . . 5 . . . . . . . 1 Energy Discharges 3 | . . . . . 2 . . . . . . . 1 Data Loss (minor) 6 | . . . . . 4 . . . . . . . 2 Data Loss (major) 4 | . . . . . 3 . . . . . . . 1 Misfires 1 | . . . . . 1 . . . . . . . . Alerts 2 | . . . . . 1 . . . . . . . 1 Overload Shots . | . . . . . . . . . . . . . . Overflow Damage 1040 | . . . . . 17 257 160 94 134 206 86 . 86 Projectiles . | . . . . . . . . . . . . . . Explosions . | . . . . . . . . . . . . . . Melee 1040 | . . . . . 17 257 160 94 134 206 86 . 86 Knockbacks . | . . . . . . . . . . . . . . Impact . | . . . . . . . . . . . . . . Kinetic . | . . . . . . . . . . . . . . Secondary . | . . . . . . . . . . . . . . Self-Inflicted Damage 6 | . . . . . . . . . . . . . 6 Shots . | . . . . . . . . . . . . . . Rammed 3 | . . . . . . . . . . . . . 3 Targets Rammed 3 | . . . . . . . . . . . . . 3 Kicked . | . . . . . . . . . . . . . . Crushed . | . . . . . . . . . . . . . . Highest Temperature 316 | 74 187 6 . . 172 . 34 . 42 145 148 282 316 Average Temperature 49 | 30 31 4 . . 46 . 9 . 17 58 41 125 110 Received Heat Transfer 1383 | . 288 . . . 711 . . . 30 21 . . 333 Effects 3 | . . . . . . . . . . . . 2 1 Energy Bleed 1 | . . . . . . . . . . . . 1 . Interference 1 | . . . . . . . . . . . . 1 . Matter Decay 1 | . . . . . . . . . . . . . 1 Siege Activations . | . . . . . . . . . . . . . . Martial Activations . | . . . . . . . . . . . . . . Shielding Activations . | . . . . . . . . . . . . . . Robots Disrupted . | . . . . . . . . . . . . . . Combat Hostiles . | . . . . . . . . . . . . . . Robots Corrupted . | . . . . . . . . . . . . . . Combat Hostiles . | . . . . . . . . . . . . . . Parts Fried . | . . . . . . . . . . . . . . Impact Corruptions . | . . . . . . . . . . . . . . Robots Melted 2 | . . . . . 2 . . . . . . . . Combat Hostiles 2 | . . . . . 2 . . . . . . . . Parts Melted 20 | . 5 3 . . 12 . . . . . . . . Heat Transferred 9518 | 222 2960 296 . . 6031 . . . . . . . 9 Parts Sabotaged . | . . . . . . . . . . . . . . Parts Stolen . | . . . . . . . . . . . . . . Parts Stripped . | . . . . . . . . . . . . . . Power Chain Reactions . | . . . . . . . . . . . . . . Alert | -11 -10 -10 -10 -9 -8 -7 -6 -5 -4 -3 -2 -1 -1 ------- Run | Yrd Mat Min Exi Min Mat Fac Fac Fac Fac Res Res Acc Com Maximum Alert Level . | . . . . . . . . . . . . . . Low Security (%) 100 | 100 100 100 . 100 100 100 100 100 100 100 100 100 100 Level 1 . | . . . . . . . . . . . . . . Level 2 . | . . . . . . . . . . . . . . Level 3 . | . . . . . . . . . . . . . . Level 4 . | . . . . . . . . . . . . . . Level 5 . | . . . . . . . . . . . . . . High Security . | . . . . . . . . . . . . . . Max Security . | . . . . . . . . . . . . . . Peak Influence 128 | 5 114 5 . . 128 15 50 10 25 50 93 45 28 Initial 35 | . . . . . . . . . . 1 . 35 21 Average 16 | . 24 . . . 27 1 16 1 6 11 29 15 2 Influence Increases 2762 | 15 586 15 . . 1152 139 126 51 151 174 144 56 153 Destroy 0b10 Robot/C 1040 | . 340 . . . 640 . . . . 40 20 . . Destroy 0b10 Robot/NC 405 | 15 55 15 . . 130 75 35 15 15 30 5 5 10 Destroy Leader 306 | . 80 . . . 208 4 2 . . 6 2 . 4 Successful Hack 187 | . 25 . . . 42 . 69 14 12 10 . . 15 Select Force Hacks 90 | . 60 . . . 30 . . . . . . . . Disable Machine 12 | . . . . . . 4 . . 4 . . . 4 Destroy Structure 272 | . 11 . . . 12 26 5 22 60 58 27 6 45 Partial Spotted 120 | . 15 . . . . 15 15 . 15 15 15 . 30 Lose Combat Pursuer 330 | . . . . . 90 15 . . 45 15 75 45 45 Influence Decreases 2762 | 15 586 15 . . 1152 139 126 51 145 180 66 89 198 Entered New Map 72 | . . . . . . . . . . 5 . 43 24 Time Decay 2615 | 15 586 15 . . 1131 139 126 49 145 175 66 36 132 Lost Part 62 | . . . . . 20 . . . . . . . 42 Lost Ally 10 | . . . . . . . . . . . . 10 . Purge Threat 3 | . . . . . 1 . . 2 . . . . . Squads Dispatched 20 | . 4 . . . 4 4 . . 1 2 1 2 2 Investigation 7 | . 4 . . . 2 1 . . . . . . . Extermination 8 | . . . . . . 2 . . 1 2 . 1 2 Reinforcement 3 | . . . . . . 1 . . . . 1 1 . Assault . | . . . . . . . . . . . . . . Garrison 2 | . . . . . 2 . . . . . . . . Intercept . | . . . . . . . . . . . . . . Searches Triggered . | . . . . . . . . . . . . . . Construction Impeded . | . . . . . . . . . . . . . . Haulers Reinforced 1 | . . . . . . 1 . . . . . . . Active Scanning Responses . | . . . . . . . . . . . . . . Cargo Convoy Interrupts . | . . . . . . . . . . . . . . Stealth | -11 -10 -10 -10 -9 -8 -7 -6 -5 -4 -3 -2 -1 -1 --------- Run | Yrd Mat Min Exi Min Mat Fac Fac Fac Fac Res Res Acc Com Distress Signals 8 | . 1 . . . 2 1 . . 1 1 1 . 1 Communications Jammed 14 | . . . . . . . . . . 14 . . . Distress Signals 14 | . . . . . . . . . . 14 . . . Times Spotted 145 | . 23 1 . . 53 7 1 1 8 13 9 9 20 Peak Tracking Total 8 | . 4 1 . . 6 3 . 1 5 4 6 8 8 Tactical Retreats 18 | . . . . . 5 1 . . 3 1 2 1 5 Traps | -11 -10 -10 -10 -9 -8 -7 -6 -5 -4 -3 -2 -1 -1 ------- Run | Yrd Mat Min Exi Min Mat Fac Fac Fac Fac Res Res Acc Com Traps Triggered 5 | . . . . . 2 . . . 1 1 . . 1 Indirectly . | . . . . . . . . . . . . . . Trap Hack Attempts . | . . . . . . . . . . . . . . Triggered . | . . . . . . . . . . . . . . Disarmed 16 | . . . . . 14 . 2 . . . . . . Reprogrammed . | . . . . . . . . . . . . . . Reused . | . . . . . . . . . . . . . . Traps Extracted . | . . . . . . . . . . . . . . Installed . | . . . . . . . . . . . . . . Triggered . | . . . . . . . . . . . . . . Machines | -11 -10 -10 -10 -9 -8 -7 -6 -5 -4 -3 -2 -1 -1 ---------- Run | Yrd Mat Min Exi Min Mat Fac Fac Fac Fac Res Res Acc Com Machines Disabled 3 | . . . . . . 1 . . 1 . . . 1 Max in Single Turn 1 | . . . . . . 1 . . 1 . . . 1 Garrison Access 5 | . . . . . 1 1 1 . . 1 1 . . Machines Repaired . | . . . . . . . . . . . . . . Machines Dismantled . | . . . . . . . . . . . . . . Machines Sabotaged . | . . . . . . . . . . . . . . Overloaded Fab Kills . | . . . . . . . . . . . . . . Hacking | -11 -10 -10 -10 -9 -8 -7 -6 -5 -4 -3 -2 -1 -1 --------- Run | Yrd Mat Min Exi Min Mat Fac Fac Fac Fac Res Res Acc Com Machines Accessed 80 | . 9 . 2 . 17 16 6 9 2 5 5 5 4 Terminals 56 | . 7 . . . 12 11 3 6 1 3 4 5 4 Fabricators 6 | . . . . . . 3 . 2 . 1 . . . Repair Stations 1 | . . . . . 1 . . . . . . . . Recycling Units 5 | . 2 . . . 1 1 1 . . . . . . Scanalyzers 5 | . . . . . 2 . 1 1 1 . . . . Garrison Access 5 | . . . . . 1 1 1 . . 1 1 . . Total Hacks 395 | . 35 . 5 . 53 92 51 51 8 35 37 14 14 Successful 286 | . 25 . 5 . 40 61 36 37 6 27 27 12 10 Failed 109 | . 10 . . . 13 31 15 14 2 8 10 2 4 Catastrophic 11 | . . . . . 1 3 3 2 1 . . . 1 Database Lockouts . | . . . . . . . . . . . . . . Manual 267 | . 27 . 1 . 22 70 30 35 5 26 32 9 10 Terminals 333 | . 33 . . . 37 79 43 40 6 31 36 14 14 Fabricators 19 | . . . . . . 10 . 6 . 3 . . . Repair Stations 2 | . . . . . 2 . . . . . . . . Recycling Units 7 | . 2 . . . 1 2 2 . . . . . . Scanalyzers 24 | . . . . . 12 . 5 5 2 . . . . Garrison Access 5 | . . . . . 1 1 1 . . 1 1 . . Terminal Hacks 197 | . 20 . 5 . 19 44 26 25 2 19 21 9 7 Record 6 | . . . 4 . . . . . . 1 1 . . Part Schematic 7 | . 1 . . . . . 2 4 . . . . . Robot Analysis 11 | . 6 . . . 2 . . 1 . . . . 2 Prototype ID Bank 79 | . 10 . . . . 28 13 5 . 9 14 . . Open Door 4 | . . . . . . . . . . . . 3 1 Level Access Points 6 | . . . . . . 1 1 1 1 1 1 . . Branch Access Points 3 | . . . . . . . . . . 1 . 1 1 Emergency Access Points 4 | . . . . . 1 1 . 1 . 1 . . . Machine Index 8 | . . . . . . . 1 2 . 1 1 2 1 Terminal Index 4 | . 1 . . . 1 1 1 . . . . . . Recycling Unit Index 1 | . 1 . . . . . . . . . . . . Scanalyzer Index 2 | . . . . . 1 . 1 . . . . . . Unreport Threat 3 | . . . . . 2 . . 1 . . . . . Locate Traps 8 | . . . . . 3 3 . 1 . 1 . . . Disarm Traps 9 | . . . . . 4 . 3 . . . . 1 1 Transport Status 1 | . . . . . . 1 . . . . . . . Garrison Status 1 | . . . . . . . . 1 . . . . . Recall Extermination 3 | . . . . . . 2 . . . . . 1 . Recall Reinforcements 1 | . . . . . . 1 . . . . . . . Hauler Manifests 9 | . 1 . . . 3 1 . 2 . . 2 . . Registered Components 7 | . . . . . 1 1 1 1 1 1 1 . . Registered Prototypes 5 | . . . . . 1 1 1 1 . 1 . . . Zone Layout 13 | . . . . . . 3 2 4 . 2 1 1 . Proto ID Catalog 1 | . . . 1 . . . . . . . . . . Disengage Seal 1 | . . . . . . . . . . . . . 1 Fabricator Hacks 7 | . . . . . . 4 . 1 . 2 . . . Network Status 3 | . . . . . . 1 . 1 . 1 . . . Load Schematic 2 | . . . . . . 2 . . . . . . . Build 2 | . . . . . . 1 . . . 1 . . . Repair Station Hacks 2 | . . . . . 2 . . . . . . . . Scan Component 1 | . . . . . 1 . . . . . . . . Repair 1 | . . . . . 1 . . . . . . . . Recycling Unit Hacks 2 | . . . . . . 1 1 . . . . . . Retrieve Components 2 | . . . . . . 1 1 . . . . . . Scanalyzer 23 | . . . . . 12 . 5 4 2 . . . . Insert Component 9 | . . . . . 4 . 2 2 1 . . . . Analyze 14 | . . . . . 8 . 3 2 1 . . . . Garrison Access Hacks 5 | . . . . . 1 1 1 . . 1 1 . . Seal Access 5 | . . . . . 1 1 1 . . 1 1 . . Unauthorized Hacks 50 | . 5 . . . 6 11 3 7 2 5 5 3 3 Terminals 37 | . 3 . . . 5 5 3 4 2 4 5 3 3 Assimilate 5 | . . . . . 1 1 . . . . 2 . 1 Botnet 23 | . 2 . . . 3 3 2 3 1 3 2 2 2 Operators 9 | . 1 . . . 1 1 1 1 1 1 1 1 . Fabricators 9 | . . . . . . 5 . 3 . 1 . . . Liberate 2 | . . . . . . 2 . . . . . . . Fabnet 5 | . . . . . . 2 . 2 . 1 . . . Haulers 1 | . . . . . . . . 1 . . . . . Recompile 1 | . . . . . . 1 . . . . . . . Repair Stations . | . . . . . . . . . . . . . . Recycling Units 4 | . 2 . . . 1 1 . . . . . . . Recyclers 1 | . . . . . . 1 . . . . . . . Tunnel 3 | . 2 . . . 1 . . . . . . . . Scanalyzers . | . . . . . . . . . . . . . . Garrison Access . | . . . . . . . . . . . . . . Data Cores Recovered 3 | . . . . . . 1 . 1 . 1 . . . Used . | . . . . . . . . . . . . . . Hacking Detections 43 | . 7 . . . 9 9 3 6 1 4 1 1 2 Full Trace Events 6 | . 5 . . . 1 . . . . . . . . Feedback Events . | . . . . . . . . . . . . . . Feedback Blocked . | . . . . . . . . . . . . . . Robot Schematics Acquired . | . . . . . . . . . . . . . . Robots Built . | . . . . . . . . . . . . . . Authchips . | . . . . . . . . . . . . . . Time . | . . . . . . . . . . . . . . Total Robot Build Rating . | . . . . . . . . . . . . . . Part Schematics Acquired 16 | . 1 . . . 4 . 4 6 1 . . . . Parts Built 1 | . . . . . . 1 . . . . . . . Authchips . | . . . . . . . . . . . . . . Time 247 | . . . . . . 25 . . . 222 . . . Total Part Build Rating 1 | . . . . . . 1 . . . . . . . Parts Repaired 1 | . . . . . 1 . . . . . . . . Time 26 | . . . . . 26 . . . . . . . . Parts Recycled . | . . . . . . . . . . . . . . Recycled Matter . | . . . . . . . . . . . . . . Retrieved Matter . | . . . . . . . . . . . . . . Retrieved Components 4 | . . . . . . 1 3 . . . . . . Parts Scanalyzed 9 | . . . . . 4 . 2 2 1 . . . . Part Schematics Acquired 9 | . . . . . 4 . 2 2 1 . . . . Parts Damaged . | . . . . . . . . . . . . . . Bothacking | -11 -10 -10 -10 -9 -8 -7 -6 -5 -4 -3 -2 -1 -1 ------------ Run | Yrd Mat Min Exi Min Mat Fac Fac Fac Fac Res Res Acc Com Used RIF Installer . | . . . . . . . . . . . . . . Robots Hacked 2 | . . . . . . . . . . 1 . . 1 Non-combat . | . . . . . . . . . . . . . . Combat 2 | . . . . . . . . . . 1 . . 1 Robot Hacks Applied . | . . . . . . . . . . . . . . Relay Couplers Released . | . . . . . . . . . . . . . . Fabnet Peak Effective % 6 | . . . . . . . 3 1 6 2 3 1 1 Autooverrided 2 | . . . . . . . . . . 1 . . 1 Robots Rewired . | . . . . . . . . . . . . . . Allies Hacked . | . . . . . . . . . . . . . . Hacks Repelled . | . . . . . . . . . . . . . . Allies | -11 -10 -10 -10 -9 -8 -7 -6 -5 -4 -3 -2 -1 -1 -------- Run | Yrd Mat Min Exi Min Mat Fac Fac Fac Fac Res Res Acc Com Total Allies 6 | . . . . . 1 . . . . 1 2 . 2 Largest Group 1 | . . . . . 1 . . . . 1 1 1 1 Highest-Rated Group 82 | . . . . . 26 . . . . 82 26 26 61 Highest-Rated Ally 82 | . . . . . 26 . . . . 82 26 26 61 Total Orders . | . . . . . . . . . . . . . . Ally Attacks 4 | . . . . . . . . . . 3 . . 1 Total Damage 290 | . . . . . . . . . . 267 . . 23 Kills . | . . . . . . . . . . . . . . Allies Corrupted 1 | . . . . . . . . . . . . 1 . Allies Melted . | . . . . . . . . . . . . . . Intel | -11 -10 -10 -10 -9 -8 -7 -6 -5 -4 -3 -2 -1 -1 ------- Run | Yrd Mat Min Exi Min Mat Fac Fac Fac Fac Res Res Acc Com Active Infowar (turns) 888 | . . . . . 629 . . . . 51 . . 208 Seismic 629 | . . . . . 629 . . . . . . . . Cloaking 3 | . . . . . . . . . . . . . 3 Jamming 256 | . . . . . . . . . . 51 . . 205 Robot Analysis Total 11 | . 6 . . . 2 . . 1 . . . . 2 Derelict Logs Recovered 1 | . . 1 . . . . . . . . . . . Drone Launches . | . . . . . . . . . . . . . . Drone Recoveries . | . . . . . . . . . . . . . . Exploration | -11 -10 -10 -10 -9 -8 -7 -6 -5 -4 -3 -2 -1 -1 ------------- Run | Yrd Mat Min Exi Min Mat Fac Fac Fac Fac Res Res Acc Com Turns Passed 8504 | 183 1641 782 308 284 2730 655 266 202 307 320 104 92 630 Spaces Moved 9599 | 71 872 559 226 211 1382 1684 839 657 783 800 299 304 912 Core 101 | 7 . . . . . . . . . . . . 94 Treads 502 | 64 436 . . . 2 . . . . . . . . Legs . | . . . . . . . . . . . . . . Wheels 2830 | . 436 559 226 211 1380 18 . . . . . . . Hover . | . . . . . . . . . . . . . . Flight 6166 | . . . . . . 1666 839 657 783 800 299 304 818 Fastest Speed 6 | 50 135 135 135 135 135 24 21 20 20 17 17 17 6 Average Speed 63 | 215 150 135 135 135 142 25 23 20 20 17 17 17 19 Slowest Speed 560 | 240 240 135 135 135 560 145 24 94 20 20 17 18 50 Overloaded Moves 38 | . . . . . . . . . . . . . 38 Propulsion Burnouts . | . . . . . . . . . . . . . . Robots Hopped 29 | . . . . . . 2 . . 8 1 . 4 14 Potential Cave-ins . | . . . . . . . . . . . . . . Cave-ins Triggered . | . . . . . . . . . . . . . . Exploration Rate (%) 42 | 6 92 91 61 52 96 45 24 21 26 31 13 11 31 Regions Visited 13 Branch Regions 4 Pre-discovered Areas 5 | . 2 1 1 . 1 . . . . . . . . Known Exits Taken 13 | 1 1 1 1 1 1 1 1 1 1 1 1 1 . Unknown Exits Taken . | . . . . . . . . . . . . . . Scrap Searched 1 | . . . . 1 . . . . . . . . . Spaces Dug 142 | . 14 . . . 4 26 5 11 30 26 9 2 15 Terrain Destroyed 142 | . 14 . . . 4 26 5 11 30 26 9 2 15 Melee 120 | . . . . . 4 26 4 10 28 22 9 2 15 Projectile 8 | . . . . . . . 1 1 2 4 . . . AOE 14 | . 14 . . . . . . . . . . . . Terrain Rammed . | . . . . . . . . . . . . . . Walls Destroyed . | . . . . . . . . . . . . . . Machines Disabled . | . . . . . . . . . . . . . . Actions | -11 -10 -10 -10 -9 -8 -7 -6 -5 -4 -3 -2 -1 -1 --------- Run | Yrd Mat Min Exi Min Mat Fac Fac Fac Fac Res Res Acc Com Total 11162 | 91 1070 580 229 210 1869 1831 884 694 862 904 328 327 1283 Wait 719 | . 69 12 . . 212 47 8 . 26 14 7 17 307 Move 9534 | 70 871 558 225 210 1381 1679 838 656 768 797 298 295 888 Hop 23 | . . . . . . 2 . . 6 1 . 4 10 Pick Up 97 | 10 18 3 4 . 26 10 4 4 6 4 4 . 4 Fast Attach 35 | 5 2 . . . 14 5 1 4 . 1 . . 3 Attach 36 | 1 1 . . . 3 8 3 3 3 2 3 2 7 Detach 7 | . . . . . 1 . 2 1 . 1 . . 2 Swap 96 | . 14 1 . . 27 9 8 1 6 16 . 3 11 Drop 113 | . 15 2 . . 50 22 6 6 5 3 1 . 3 Fire 246 | 5 80 4 . . 147 . 1 1 3 4 . . 1 Melee 217 | . . . . . 8 49 13 17 39 43 15 6 27 Ram 3 | . . . . . . . . . . . . . 3 Kick . | . . . . . . . . . . . . . . Crush . | . . . . . . . . . . . . . . Escape Stasis 18 | . . . . . . . . . . 18 . . . Rewire . | . . . . . . . . . . . . . . Trap . | . . . . . . . . . . . . . . Miscellaneous 18 | . . . . . . . . 1 . . . . 17 Route ------- -11/Scrapyard -10/Materials (discovered 4 exits: *Mat x3 / *Min) -10/Mines (discovered 3 exits: *Mat x2 / *Exi) -10/Exiles -9/Mines -8/Materials (discovered 3 exits: *Fac x3) -7/Factory (discovered 4 exits: *Fac x4) -6/Factory (discovered 4 exits: *Fac x4) -5/Factory (discovered 5 exits: *Fac x4 / *Upp) -4/Factory (discovered 4 exits: *Res x4) -3/Research (discovered 6 exits: *Res x3 / Arm / Qua x2) -2/Research (discovered 3 exits: *Acc x3) -1/Access -1/Command History --------- Turn | Location | Event 21 | -11/Scrapyard | Identified exit to Materials 21 | -11/Scrapyard | Discovered exit to Materials (range 15) 184 | -11/Scrapyard | Entered Materials 184 | -10/Materials | Evolved 1 slot: Propulsion x1 308 | -10/Materials | Build established: Hacker-Mutant 529 | -10/Materials | Identified exit to Materials 529 | -10/Materials | Discovered exit to Materials (range 13) 952 | -10/Materials | Discovered exit to Materials (range 8) 1278 | -10/Materials | Discovered exit to Materials (range 3) 1453 | -10/Materials | Identified exit to Mines 1453 | -10/Materials | Discovered exit to Mines (range 7) 1825 | -10/Materials | Entered Mines 1836 | -10/Mines | Discovered exit to Materials (range 6) 1846 | -10/Mines | Received a Rocket Launcher from a helpful Derelict 1865 | -10/Mines | Met a Derelict bent on vengeance 1939 | -10/Mines | Joined a pair of Derelicts in attacking an 0b10 outpost 1989 | -10/Mines | Deemed a non-threat by the Exiles lab entrance 1990 | -10/Mines | Identified exit to Exiles 1990 | -10/Mines | Discovered exit to Exiles (range 5) 2051 | -10/Mines | Found a damaged Exp. Sensor Array with a note attached 2054 | -10/Mines | Found Prototype Device 2229 | -10/Mines | Discovered exit to Materials (range 9) 2427 | -10/Mines | Learned location of Storage (-9) 2607 | -10/Mines | Entered Exiles 2646 | -10/Exiles | Met 8R-AWN 2667 | -10/Exiles | Met EX-HEX 2708 | -10/Exiles | Met EX-BIN 2724 | -10/Exiles | Aligned with FarCom system 2725 | -10/Exiles | Given EX-Vault access code 2756 | -10/Exiles | Opened EX-Vault 2766 | -10/Exiles | Found Modified TNC 2792 | -10/Exiles | Warned to stay clear of 0b10 Research branches 2812 | -10/Exiles | Exiles lab attacked by MAIN.C 2852 | -10/Exiles | Learned location of Zion (-7) 2903 | -10/Exiles | Identified exit to Mines 2903 | -10/Exiles | Discovered exit to Mines (range 10) 2915 | -10/Exiles | Left Exiles lab with Modified TNC 2915 | -10/Exiles | Entered Mines 3185 | -9/Mines | Identified exit to Materials 3185 | -9/Mines | Discovered exit to Materials (range 12) 3199 | -9/Mines | Entered Materials 3199 | -8/Materials | Evolved 4 slots: Propulsion x1, Utility x3 3298 | -8/Materials | Identified Exp. Sensor Array 3495 | -8/Materials | Repaired Med. Laser 3516 | -8/Materials | Build established: Scavenger-Mutant 3552 | -8/Materials | Identified exit to Factory 3552 | -8/Materials | Discovered exit to Factory (range 15) 3965 | -8/Materials | Discovered exit to Factory (range 8) 4022 | -8/Materials | Garrison activated, responded to threat 4165 | -8/Materials | Garrison activated, responded to threat 4827 | -8/Materials | Build established: Hacker-Mutant 5862 | -8/Materials | Discovered exit to Factory (range 15) 5929 | -8/Materials | Entered Factory 5929 | -7/Factory | Evolved 2 slots: Propulsion x1, Utility x1 6130 | -7/Factory | Identified exit to Factory 6254 | -7/Factory | Build established: Wizard-Sprinter 6284 | -7/Factory | Fabricated Med. Storage Unit (x1) 6584 | -7/Factory | Entered another Factory area 6584 | -6/Factory | Evolved 2 slots: Propulsion x1, Utility x1 6613 | -6/Factory | Identified exit to Factory 6850 | -6/Factory | Entered another Factory area 6850 | -5/Factory | Evolved 2 slots: Power x1, Utility x1 6909 | -5/Factory | Identified exit to Factory 6934 | -5/Factory | Identified exit to Upper Caves 6934 | -5/Factory | Discovered exit to Upper Caves (range 16) 7052 | -5/Factory | Entered another Factory area 7052 | -4/Factory | Evolved 2 slots: Utility x2 7136 | -4/Factory | Identified exit to Research 7359 | -4/Factory | Entered Research 7359 | -3/Research | Evolved 2 slots: Propulsion x1, Utility x1 7391 | -3/Research | Identified exit to Research 7391 | -3/Research | Identified exit to Armory 7391 | -3/Research | Identified exit to Quarantine 7679 | -3/Research | Entered another Research area 7679 | -2/Research | Evolved 2 slots: Utility x2 7687 | -2/Research | Found Gamma Bomb Array 7738 | -2/Research | Identified exit to Access 7783 | -2/Research | Entered Access 7783 | -1/Access | Accompanied by 1 ally 7783 | -1/Access | Evolved 2 slots: Utility x2 7790 | -1/Access | Identified exit to Command 7875 | -1/Access | Entered Command 7982 | -1/Command | Disengaged cave seal 7982 | -1/Command | Wild derelicts emerged from the dark tunnel 8056 | -1/Command | Spotted B-99 Colossus 8108 | -1/Command | Spotted M Guard 8108 | -1/Command | Spotted M Guard 8117 | -1/Command | Spotted Combat Programmer 8117 | -1/Command | Spotted Combat Programmer 8122 | -1/Command | Met MAIN.C 8128 | -1/Command | 0b10 Conduit disabled 8192 | -1/Command | Released all parts (16) 8222 | -1/Command | Lost 11 parts (1p4n5u1w) 8473 | -1/Command | Core integrity fell below 50% 8485 | -1/Command | Build established: Hacker-Mutant 8488 | -1/Command | Core integrity fell below 20% 8488 | -1/Command | System corruption reached 10% 8505 | -1/Command | Destroyed by Combat Programmer with EMDS Last Messages --------------- 08472_ Destabilizing: Core damaged (-64). 08472_ EMDS Slug penetrates Combat Programmer. 08474_ Combat Programmer resets M Guard, system corruption cleaned. 08475_ Combat Programmer resets Combat Programmer, system corruption cleaned. 08475_ Knocked back. 08476_ EMDS Slug penetrates 0b10 Conduit. 08476_ Penetrated by EMDS Slug. 08476_ Door malfunctions. 08477_ Knocked back. 08478_ EMDS Slug penetrates Reinforced Barrier. 08478_ Penetrated by EMDS Slug. 08485_ EMDS Slug penetrates Reinforced Barrier. 08487_ Penetrated by EMDS Slug. 08498_ System corrupted: Substantial component data lost. 08498_ Penetrated by EMDS Slug. 08502_ EMDS Slug penetrates Combat Programmer. 08505_ Penetrated by EMDS Slug. Map ----- +----------------------------------------------------+ | ?????????????????????????????????????????????????? | | ?????????????????????????????????????????????????? | | ?????????????????????????????????????????????????? | | ?????????????????????????????????????????????????? | | ????????????????????????????????????????????????## | | ????????????????????????????????????????????????# | | ????????????????????????????????????????????????# | | ????????????????????????????????????????????????# | | ????????????????????????????????????????????????# | | ????????????????????????????????????????????????# | | ????????????????????????????????????????????????# | | ????????????????????????????????????????????????# | | ????????????????????????????????????????????????# | | ????????????????????????????????????????????????# | | #####################???????????????????????????# | | #???????????????????????????# | | #???????????????????????????# | | #???????????????????????????# | | ################# #???????????????????????????# | | ????????????????# #???????????????????????????# | | ????????????????# ########?#####?#####?#####??# | | ????????????????# T# #?# #?# #?# #??# | | ????????????????# ### W ### W ### W ### #### | | ????????????????# p k + | | ????????????????# pp p + | | ????????????????# @ + | | ????????????????# + | | ????????????????# + | | ????????????????# ### ### W ### W ### ##### | | ????????????????######?# #?# #?# #?# #???? | | ???????????????????????#####?#####?#####?#####???? | | ?????????????????????????????????????????????????? | | ?????????????????????????????????????????????????? | | ?????????????????????????????????????????????????? | | ?????????????????????????????????????????????????? | | ?????????????????????????????????????????????????? | | ?????????????????????????????????????????????????? | | ?????????????????????????????????????????????????? | | ?????????????????????????????????????????????????? | | ?????????????????????????????????????????????????? | | ?????????????????????????????????????????????????? | | ?????????????????????????????????????????????????? | | ?????????????????????????????????????????????????? | | ?????????????????????????????????????????????????? | | ?????????????????????????????????????????????????? | | ?????????????????????????????????????????????????? | | ?????????????????????????????????????????????????? | | ?????????????????????????????????????????????????? | | ?????????????????????????????????????????????????? | | ?????????????????????????????????????????????????? | +----------------------------------------------------+ Best States ------------- Heat Dissipation 79 Energy Generation 35 Energy Capacity 290 Matter Stores 300 Matter Capacity 300 Sight Range 16 Terrain Scan Density 10 Jamming Range 16 Armor Coverage 300 Resistance: KI 35 Resistance: TH 35 Resistance: EX 35 Resistance: EM 35 Resistance: I 35 Resistance: S 35 Resistance: P 35 Evasion (%) 78 Recoil Reduction 3 Offensive Hacking 90 Defensive Hacking 62 Authchip Count 1 Item Schematics ----------------- Med. Storage Unit | -10/Materials | Hacked System Shield | -8/Materials | Scanalyzed Nuclear Core | -8/Materials | Scanalyzed Exp. Sensor Array | -8/Materials | Scanalyzed Imp. VTOL Module | -8/Materials | Scanalyzed Hacking Suite | -6/Factory | Scanalyzed Cld. VTOL Module | -6/Factory | Scanalyzed Neutrino Core | -6/Factory | Hacked Adv. Transmission Jammer | -6/Factory | Hacked Field Propulsion Drive | -5/Factory | Scanalyzed Cesium-ion Thruster | -5/Factory | Scanalyzed Lance | -5/Factory | Hacked Enh. Force Lance | -5/Factory | Hacked Hvy. Shock Bomb Launcher | -5/Factory | Hacked Quantum Capacitor | -5/Factory | Hacked Adv. Terrain Scan Processor | -4/Factory | Scanalyzed Robot Schematics ------------------ None Fabricated ------------ Med. Storage Unit | x1 | -7/Factory Repaired ---------- Med. Laser | 28% | -8/Materials Alien Tech Used ----------------- None Achievements -------------- Meet Your Maker Speed Demon Whoosh! Challenges ------------ None Game ------ Seed TachyonWeaponsDetector Manual? 0 Play Time 02:15:34 Cumulative 117.1 hours Start 2025.08.31 @ 13:00:45 End 2025.09.01 @ 23:40:07 Sessions 5 Manual Loads 0 Difficulty Explorer Special Mode None Game No. 43 Rogue 38 Adventurer 0 Explorer 5 Win Type - Total 6 Types 4/0/1/1/0/0/0/0/0/0 Lore% 69 Gallery% 58 Achievement% 55 Wizard Run 0 Options --------- Layout 1 ASCII 0 Keyboard 0 Movement Mouse Keybinds 0 Fullscreen 2 Font 24/Smallcaps Map View 50x35 Zoom Use 0% Tactical HUD 1 Map Filters NONE Filters NONE Steam 1 RUN: 231b4e50-e512-4854-bb67-b88545943ca4